lending/lending_fUSD_20251218
["ID","MTS","AMOUNT","RATE_DAILY","PERIOD"]
[398962816,1766027448960,-153.0,0.00034444,2]
[398962817,1766027448970,-4266.16951405,0.0003452,7]
[398962818,1766027448979,-262.62,0.000346,14]
[398962819,1766027448992,-359.463867,0.000348,2]
[398962820,1766027449001,-500.0,0.00034844,60]
[398962821,1766027449011,-500.0,0.00034844,60]
[398962822,1766027449020,-526.53,0.00034844,60]
[398962823,1766027449031,-500.0,0.00034844,60]
[398962824,1766027449040,-4486.23416492,0.00034845,2]
[398962825,1766027449049,-1000.0,0.00034885,7]
[398962826,1766027449059,-635.61,0.00034986,120]
[398962827,1766027449068,-1160.6725,0.00034986,120]
[398962828,1766027449077,-150.0,0.00034986,120]
[398962829,1766027449086,-500.0,0.00034999,60]
[398962830,1766027449096,-500.0,0.00034999,60]
[398962831,1766027449106,-500.0,0.00034999,60]
[398962832,1766027449115,-526.53,0.00034999,60]
[398962833,1766027449125,-500.0,0.00034999,60]
[398962834,1766027449134,-1503.14913101,0.00035,120]
[398962835,1766027449143,-240454.90723698,0.00035,3]
[398962836,1766027449153,-151.72,0.00035151,2]
[398962837,1766027449163,-150.86,0.00035151,2]
[398962838,1766027449172,-150.0,0.00035151,2]
[398962839,1766027449181,-150.0,0.00035151,2]
[398962840,1766027449191,-150.0,0.00035151,2]
[398962841,1766027449201,-1000.0,0.00035159,7]
[398962842,1766027449211,-150.0,0.000352,12]
[398962843,1766027449222,-1271.22,0.0003526,120]
[398962844,1766027449232,-249.60807761,0.00035345,2]
[398962845,1766027449242,-2321.345,0.00035397,120]
[398962846,1766027449251,-300.0,0.00035397,120]
[398962847,1766027449260,-2000.0,0.000355,2]
[398962848,1766027449272,-1906.83,0.00035534,120]
[398962849,1766027449281,-563.1,0.00035616,107]
[398962850,1766027449290,-417.3,0.00035616,35]
[398962851,1766027449301,-437.1,0.00035616,92]
[398962852,1766027449313,-368.1,0.00035616,117]
[398962853,1766027449323,-300.0,0.00035616,100]
[398962854,1766027449332,-386.64483464,0.00035616,7]
[398962855,1766027449342,-500.0,0.00035616,7]
[398962856,1766027449351,-7959.20493029,0.00035636,2]
[398962857,1766027449360,-262.62,0.000357,14]
[398962858,1766027449369,-556.64302979,0.00035777,60]
[398962859,1766027449379,-2542.44,0.00035808,120]
[398962860,1766027449388,-3482.0175,0.00035808,120]
[398962861,1766027449397,-450.0,0.00035808,120]
[398962862,1766027449406,-7248.19034838,0.00035816,2]
[398962863,1766027449415,-500.0,0.00035891,45]
[398962864,1766027449424,-3178.05,0.00036082,120]
[398962865,1766027449433,-4642.69,0.00036219,120]
[398962866,1766027449442,-600.0,0.00036219,120]
[398962867,1766027449451,-3813.66,0.00036356,120]
[398962868,1766027449460,-194.53,0.000364,2]
[398962869,1766027449469,-344.38,0.00036486,2]
[398962870,1766027449477,-276.35,0.00036486,2]
[398962871,1766027449486,-340.8,0.00036486,2]
[398962872,1766027449496,-170.52,0.00036486,2]
[398962873,1766027449505,-4449.27,0.0003663,120]
[398962874,1766027449513,-5803.3625,0.0003663,120]
[398962875,1766027449522,-750.0,0.0003663,120]
[398962876,1766027449531,-658.77,0.0003669,2]
[398962877,1766027449540,-480.76,0.0003669,2]
[398962878,1766027449549,-671.95,0.0003669,2]
[398962879,1766027449558,-1317.46,0.0003669,2]
[398962880,1766027449567,-969.94,0.0003669,2]
[398962881,1766027449576,-658.77,0.0003669,2]
[398962882,1766027449586,-262.62,0.000367,14]
[398962883,1766027449595,-5084.88,0.00036904,120]
[398962884,1766027449603,-150.0,0.00036962,7]
[398962885,1766027449612,-150.0,0.00036962,7]
[398962886,1766027449621,-150.0,0.00036962,7]
[398962887,1766027449630,-150.25314363,0.00036962,7]
[398962888,1766027449638,-150.0,0.00036962,7]
[398962889,1766027449648,-150.0,0.00036962,7]
[398962890,1766027449657,-150.0,0.00036962,7]
[398962891,1766027449666,-150.0,0.00036962,7]
[398962892,1766027449676,-150.0,0.00036962,7]
[398962893,1766027449685,-150.0,0.00036962,7]
[398962894,1766027449694,-191.6023122,0.00036962,7]
[398962895,1766027449703,-150.0,0.00036962,7]
[398962896,1766027449712,-150.0,0.00036962,7]
[398962897,1766027449722,-150.0,0.00037015,7]
[398962898,1766027449730,-150.0,0.00037016,7]
[398962899,1766027449739,-150.0,0.00037025,7]
[398962900,1766027449748,-150.0,0.00037026,7]
[398962901,1766027449757,-6964.035,0.00037041,120]
[398962902,1766027449765,-900.0,0.00037041,120]
[398962903,1766027449774,-150.0,0.00037045,7]
[398962904,1766027449783,-150.0,0.00037068,7]
[398962905,1766027449791,-150.0,0.00037071,7]
[398962906,1766027449800,-150.0,0.00037076,7]
[398962907,1766027449809,-150.0,0.00037088,7]
[398962908,1766027449818,-150.0,0.0003709,7]
[398962909,1766027449827,-150.0,0.00037094,7]
[398962910,1766027449837,-150.0,0.00037122,7]
[398962911,1766027449847,-150.0,0.00037126,7]
[398962912,1766027449859,-150.0,0.00037129,7]
[398962913,1766027449868,-150.0,0.00037151,7]
[398962914,1766027449877,-150.0,0.00037154,7]
[398962915,1766027449885,-150.0,0.00037175,7]
[398962916,1766027449894,-5720.49,0.00037178,120]
[398962917,1766027449904,-150.0,0.00037181,7]
[398962918,1766027449916,-150.0,0.0003719,7]
[398962919,1766027449924,-188.3897288,0.000372,120]
[398962920,1766027449933,-150.0,0.00037203,7]
[398962921,1766027449942,-150.0,0.00037213,7]
[398962922,1766027449951,-150.0,0.00037214,7]
[398962923,1766027449960,-150.0,0.00037218,7]
[398962924,1766027449969,-150.0,0.00037227,7]
[398962925,1766027449978,-150.0,0.00037228,7]
[398962926,1766027449989,-150.0,0.00037235,7]
[398962927,1766027449997,-150.0,0.00037235,7]
[398962928,1766027450007,-150.0,0.00037278,7]
[398962929,1766027450017,-150.0,0.00037282,7]
[398962930,1766027450026,-150.0,0.00037282,7]
[398962931,1766027450035,-150.0,0.0003729,7]
[398962932,1766027450046,-150.0,0.00037297,7]
[398962933,1766027450056,-150.0,0.00037304,7]
[398962934,1766027450066,-170.52,0.00037308,2]
[398962935,1766027450076,-170.52,0.00037308,2]
[398962936,1766027450086,-170.52,0.00037308,2]
[398962937,1766027450096,-160.3,0.00037308,2]
[398962938,1766027450106,-150.0,0.00037335,7]
[398962939,1766027450115,-150.0,0.00037341,7]
[398962940,1766027450124,-150.0,0.00037345,7]
[398962941,1766027450133,-150.0,0.00037347,7]
[398962942,1766027450142,-150.0,0.00037359,7]
[398962943,1766027450153,-150.0,0.00037381,7]
[398962944,1766027450163,-150.0,0.00037388,7]
[398962945,1766027450173,-150.0,0.000374,7]
[398962946,1766027450183,-402.34,0.000374,120]
[398962947,1766027450192,-150.0,0.00037404,7]
[398962948,1766027450202,-150.0,0.00037411,7]
[398962949,1766027450211,-150.0,0.00037418,7]
[398962950,1766027450222,-150.0,0.00037442,7]
[398962951,1766027450231,-150.0,0.00037445,7]
[398962952,1766027450240,-6356.1,0.00037452,120]
[398962953,1766027450249,-8124.7075,0.00037452,120]
[398962954,1766027450258,-1050.0,0.00037452,120]
[398962955,1766027450267,-150.0,0.00037454,7]
[398962956,1766027450277,-150.0,0.00037465,7]
[398962957,1766027450286,-150.0,0.00037467,7]
[398962958,1766027450295,-150.0,0.00037475,7]
[398962959,1766027450304,-150.0,0.00037492,7]
[398962960,1766027450313,-150.0,0.00037495,7]
[398962961,1766027450322,-194.53,0.000375,2]
[398962962,1766027450332,-150.0,0.00037509,7]
[398962963,1766027450342,-150.0,0.00037509,7]
[398962964,1766027450351,-150.0,0.0003753,7]
[398962965,1766027450360,-150.0,0.00037532,7]
[398962966,1766027450369,-150.0,0.00037539,7]
[398962967,1766027450378,-150.0,0.00037548,7]
[398962968,1766027450387,-150.0,0.00037548,7]
[398962969,1766027450396,-150.0,0.00037564,7]
[398962970,1766027450405,-150.0,0.00037593,7]
[398962971,1766027450413,-150.0,0.00037602,7]
[398962972,1766027450422,-300.0,0.00037602,10]
[398962973,1766027450431,-670.92683222,0.00037602,30]
[398962974,1766027450440,-150.0,0.00037603,7]
[398962975,1766027450449,-317.47275185,0.00037615,10]
[398962976,1766027450458,-150.0,0.00037619,7]
[398962977,1766027450467,-150.0,0.00037624,7]
[398962978,1766027450480,-150.0,0.00037632,7]
[398962979,1766027450489,-150.0,0.00037646,7]
[398962980,1766027450501,-500.0,0.00037648,60]
[398962981,1766027450511,-150.0,0.00037655,7]
[398962982,1766027450521,-150.0,0.00037657,7]
[398962983,1766027450531,-150.0,0.00037668,7]
[398962984,1766027450541,-150.0,0.00037673,7]
[398962985,1766027450551,-150.0,0.00037686,7]
[398962986,1766027450561,-150.0,0.00037708,7]
[398962987,1766027450570,-150.0,0.00037716,7]
[398962988,1766027450578,-150.0,0.0003772,7]
[398962989,1766027450587,-6991.71,0.00037726,120]
[398962990,1766027450596,-150.0,0.00037728,7]
[398962991,1766027450604,-150.0,0.00037732,7]
[398962992,1766027450613,-150.0,0.00037757,7]
[398962993,1766027450622,-150.0,0.0003776,7]
[398962994,1766027450631,-150.0,0.00037762,7]
[398962995,1766027450640,-2233.0,0.00037781,120]
[398962996,1766027450649,-150.0,0.00037783,7]
[398962997,1766027450658,-150.0,0.00037783,7]
[398962998,1766027450667,-150.0,0.00037783,7]
[398962999,1766027450676,-150.0,0.00037783,7]
[398963000,1766027450685,-150.0,0.00037796,7]
[398963001,1766027450694,-150.0,0.000378,7]
[398963002,1766027450707,-5506.0,0.000378,117]
[398963003,1766027450715,-150.0,0.00037815,7]
[398963004,1766027450725,-150.0,0.00037838,7]
[398963005,1766027450735,-150.0,0.00037846,7]
[398963006,1766027450744,-150.0,0.0003786,7]
[398963007,1766027450753,-9285.38,0.00037863,120]
[398963008,1766027450762,-1200.0,0.00037863,120]
[398963009,1766027450771,-150.0,0.00037868,7]
[398963010,1766027450780,-150.0,0.00037874,7]
[398963011,1766027450789,-150.0,0.00037884,7]
[398963012,1766027450797,-150.0,0.00037889,7]
[398963013,1766027450807,-150.0,0.00037893,7]
[398963014,1766027450816,-150.0,0.00037909,7]
[398963015,1766027450825,-150.0,0.00037922,7]
[398963016,1766027450834,-150.0,0.00037924,7]
[398963017,1766027450843,-150.0,0.00037928,7]
[398963018,1766027450851,-150.0,0.00037947,7]
[398963019,1766027450860,-150.0,0.00037967,7]
[398963020,1766027450869,-150.0,0.00037973,7]
[398963021,1766027450878,-150.0,0.00037975,7]
[398963022,1766027450887,-150.0,0.00037988,7]
[398963023,1766027450896,-150.0,0.00037988,7]
[398963024,1766027450905,-7627.32,0.00038,120]
[398963025,1766027450919,-150.0,0.00038002,7]
[398963026,1766027450927,-150.0,0.00038021,7]
[398963027,1766027450936,-150.0,0.00038028,7]
[398963028,1766027450945,-150.0,0.00038036,7]
[398963029,1766027450955,-150.0,0.00038051,7]
[398963030,1766027450966,-150.0,0.00038053,7]
[398963031,1766027450975,-150.0,0.00038057,7]
[398963032,1766027450985,-150.0,0.00038057,7]
[398963033,1766027450994,-150.0,0.00038082,7]
[398963034,1766027451003,-150.0,0.00038099,7]
[398963035,1766027451012,-150.0,0.00038102,7]
[398963036,1766027451021,-150.0,0.00038112,7]
[398963037,1766027451031,-150.0,0.00038117,7]
[398963038,1766027451041,-150.0,0.00038135,7]
[398963039,1766027451050,-150.0,0.00038135,7]
[398963040,1766027451059,-170.52,0.00038136,2]
[398963041,1766027451069,-150.0,0.00038154,7]
[398963042,1766027451078,-150.0,0.00038162,7]
[398963043,1766027451087,-150.0,0.00038166,7]
[398963044,1766027451096,-150.0,0.0003817,7]
[398963045,1766027451105,-249.60807761,0.00038172,2]
[398963046,1766027451114,-150.0,0.00038181,7]
[398963047,1766027451123,-150.0,0.00038188,7]
[398963048,1766027451133,-150.0,0.00038217,7]
[398963049,1766027451142,-150.0,0.00038219,7]
[398963050,1766027451151,-150.0,0.00038221,7]
[398963051,1766027451160,-150.0,0.00038225,7]
[398963052,1766027451169,-150.0,0.00038242,7]
[398963053,1766027451178,-150.0,0.00038245,7]
[398963054,1766027451187,-8262.93,0.00038273,120]
[398963055,1766027451196,-10446.0525,0.00038273,120]
[398963056,1766027451205,-1350.0,0.00038273,120]
[398963057,1766027451214,-150.0,0.00038276,7]
[398963058,1766027451223,-150.0,0.00038286,7]
[398963059,1766027451233,-150.0,0.00038288,7]
[398963060,1766027451242,-150.0,0.00038295,7]
[398963061,1766027451251,-150.0,0.00038303,7]
[398963062,1766027451260,-150.0,0.00038309,7]
[398963063,1766027451269,-7959.20493029,0.00038316,2]
[398963064,1766027451279,-150.0,0.00038331,7]
[398963065,1766027451288,-150.0,0.00038331,7]
[398963066,1766027451298,-150.0,0.00038331,7]
[398963067,1766027451307,-150.0,0.00038348,7]
[398963068,1766027451316,-150.0,0.00038352,7]
[398963069,1766027451325,-150.0,0.00038373,7]
[398963070,1766027451334,-150.0,0.00038385,7]
[398963071,1766027451344,-150.0,0.00038386,7]
[398963072,1766027451353,-194.53,0.000384,30]
[398963073,1766027451362,-150.0,0.00038402,7]
[398963074,1766027451371,-7248.19034838,0.00038406,2]
[398963075,1766027451381,-150.0,0.00038411,7]
[398963076,1766027451390,-150.0,0.00038415,7]
[398963077,1766027451400,-150.0,0.00038419,7]
[398963078,1766027451409,-150.0,0.00038438,7]
[398963079,1766027451418,-150.0,0.0003844,7]
[398963080,1766027451427,-150.0,0.00038445,7]
[398963081,1766027451436,-150.0,0.00038455,7]
[398963082,1766027451446,-150.0,0.0003847,7]
[398963083,1766027451455,-150.0,0.00038478,7]
[398963084,1766027451464,-150.0,0.00038495,7]
[398963085,1766027451473,-500.0,0.000385,60]
[398963086,1766027451483,-150.0,0.00038502,7]
[398963087,1766027451492,-150.0,0.00038508,7]
[398963088,1766027451501,-150.0,0.00038541,7]
[398963089,1766027451511,-3178.18455035,0.00038547,120]
[398963090,1766027451523,-150.0,0.0003855,7]
[398963091,1766027451533,-150.0,0.00038551,7]
[398963092,1766027451542,-150.0,0.00038554,7]
[398963093,1766027451551,-150.0,0.00038559,7]
[398963094,1766027451560,-150.0,0.00038562,7]
[398963095,1766027451569,-150.0,0.00038566,7]
[398963096,1766027451579,-150.0,0.00038604,7]
[398963097,1766027451588,-150.0,0.00038604,7]
[398963098,1766027451597,-150.0,0.00038604,7]
[398963099,1766027451606,-150.0,0.00038604,7]
[398963100,1766027451615,-150.0,0.00038615,7]
[398963101,1766027451625,-150.0,0.0003863,7]
[398963102,1766027451634,-150.0,0.00038638,7]
[398963103,1766027451644,-150.0,0.00038653,7]
[398963104,1766027451654,-150.0,0.00038659,7]
[398963105,1766027451664,-150.0,0.00038668,7]
[398963106,1766027451673,-150.0,0.00038668,7]
[398963107,1766027451683,-150.0,0.00038673,7]
[398963108,1766027451692,-150.0,0.00038684,7]
[398963109,1766027451702,-11606.725,0.00038684,120]
[398963110,1766027451711,-542.13,0.00038684,120]
[398963111,1766027451720,-150.0,0.00038694,7]
[398963112,1766027451729,-150.0,0.00038714,7]
[398963113,1766027451739,-150.0,0.00038722,7]
[398963114,1766027451748,-150.0,0.00038722,7]
[398963115,1766027451757,-150.0,0.00038731,7]
[398963116,1766027451766,-178.3,0.00038745,2]
[398963117,1766027451775,-651.24,0.00038745,2]
[398963118,1766027451785,-181.26,0.00038745,2]
[398963119,1766027451794,-565.4,0.00038745,2]
[398963120,1766027451803,-1106.75,0.00038745,2]
[398963121,1766027451812,-178.18,0.00038745,2]
[398963122,1766027451821,-553.41,0.00038745,2]
[398963123,1766027451830,-553.41,0.00038745,2]
[398963124,1766027451839,-552.63,0.00038745,2]
[398963125,1766027451849,-151.68,0.00038745,2]
[398963126,1766027452012,-347.23,0.00038745,2]
[398963127,1766027452026,-150.44,0.00038745,2]
[398963128,1766027452035,-150.0,0.00038745,2]
[398963129,1766027452044,-356.52,0.00038745,2]
[398963130,1766027452054,-150.0,0.00038745,2]
[398963131,1766027452063,-170.52,0.00038745,2]
[398963132,1766027452072,-170.52,0.00038745,2]
[398963133,1766027452082,-434.67,0.00038745,2]
[398963134,1766027452091,-150.0,0.00038745,2]
[398963135,1766027452101,-150.0,0.00038745,2]
[398963136,1766027452110,-150.0,0.00038758,7]
[398963137,1766027452120,-150.0,0.00038769,7]
[398963138,1766027452129,-500.0,0.0003877,120]
[398963139,1766027452139,-150.0,0.00038775,7]
[398963140,1766027452149,-150.0,0.00038787,7]
[398963141,1766027452159,-150.0,0.00038794,7]
[398963142,1766027452169,-262.62,0.000388,14]
[398963143,1766027452179,-2319.3,0.000388,14]
[398963144,1766027452189,-150.0,0.00038806,7]
[398963145,1766027452200,-150.0,0.00038816,7]
[398963146,1766027452210,-150.0,0.00038823,7]
[398963147,1766027452223,-150.0,0.00038823,7]
[398963148,1766027452233,-150.0,0.00038828,7]
[398963149,1766027452243,-150.0,0.00038857,7]
[398963150,1766027452254,-150.0,0.00038878,7]
[398963151,1766027452265,-150.0,0.00038878,7]
[398963152,1766027452276,-150.0,0.00038882,7]
[398963153,1766027452287,-150.0,0.00038887,7]
[398963154,1766027452296,-150.0,0.00038889,7]
[398963155,1766027452306,-150.0,0.00038894,7]
[398963156,1766027452316,-150.0,0.00038901,7]
[398963157,1766027452326,-6255.2,0.00038904,2]
[398963158,1766027452336,-150.0,0.0003892,7]
[398963159,1766027452346,-150.0,0.00038933,7]
[398963160,1766027452356,-150.0,0.00038935,7]
[398963161,1766027452367,-150.0,0.00038949,7]
[398963162,1766027452377,-150.0,0.00038951,7]
[398963163,1766027452387,-150.0,0.00038973,7]
[398963164,1766027452397,-150.0,0.00038983,7]
[398963165,1766027452407,-150.0,0.00038988,7]
[398963166,1766027452417,-150.0,0.00038988,7]
[398963167,1766027452426,-172.0421639,0.00039,10]
[398963168,1766027452436,-150.0,0.00039015,7]
[398963169,1766027452445,-150.0,0.00039015,7]
[398963170,1766027452456,-150.0,0.00039015,7]
[398963171,1766027452466,-150.0,0.00039042,7]
[398963172,1766027452475,-150.0,0.00039042,7]
[398963173,1766027452485,-150.0,0.00039047,7]
[398963174,1766027452494,-150.0,0.00039057,7]
[398963175,1766027452504,-150.0,0.00039079,7]
[398963176,1766027452513,-150.0,0.00039081,7]
[398963177,1766027452523,-500.0,0.00039094,60]
[398963178,1766027452532,-500.0,0.00039094,60]
[398963179,1766027452542,-526.53,0.00039094,60]
[398963180,1766027452551,-500.0,0.00039094,60]
[398963181,1766027452560,-12767.3975,0.00039095,120]
[398963182,1766027452570,-150.0,0.00039095,7]
[398963183,1766027452580,-150.0,0.00039097,7]
[398963184,1766027452591,-150.0,0.0003911,7]
[398963185,1766027452600,-150.0,0.00039129,7]
[398963186,1766027452610,-150.0,0.00039136,7]
[398963187,1766027452632,-150.0,0.00039141,7]
[398963188,1766027452646,-150.0,0.00039143,7]
[398963189,1766027452657,-150.0,0.00039148,7]
[398963190,1766027452668,-150.0,0.00039152,7]
[398963191,1766027452683,-150.0,0.00039152,7]
[398963192,1766027452695,-778.42,0.00039162,120]
[398963193,1766027452706,-150.0,0.00039173,7]
[398963194,1766027452715,-2000.0,0.000392,2]
[398963195,1766027452726,-150.0,0.00039202,7]
[398963196,1766027452736,-150.0,0.00039207,7]
[398963197,1766027452746,-150.0,0.00039208,7]
[398963198,1766027452756,-150.0,0.00039214,7]
[398963199,1766027452766,-150.0,0.00039225,7]
[398963200,1766027452776,-150.0,0.00039236,7]
[398963201,1766027452786,-150.0,0.00039243,7]
[398963202,1766027452800,-150.0,0.00039255,7]
[398963203,1766027452816,-150.0,0.00039261,7]
[398963204,1766027452826,-150.0,0.00039272,7]
[398963205,1766027452836,-150.0,0.00039299,7]
[398963206,1766027452845,-150.0,0.00039308,7]
[398963207,1766027452855,-150.0,0.00039308,7]
[398963208,1766027452865,-150.0,0.00039316,7]
[398963209,1766027452875,-150.0,0.00039336,7]
[398963210,1766027452887,-150.0,0.00039346,7]
[398963211,1766027452899,-150.0,0.00039357,7]
[398963212,1766027452911,-150.0,0.00039362,7]
[398963213,1766027452922,-150.0,0.00039363,7]
[398963214,1766027452932,-150.0,0.00039371,7]
[398963215,1766027452942,-150.0,0.00039377,7]
[398963216,1766027452953,-150.0,0.00039392,7]
[398963217,1766027452964,-150.0,0.000394,7]
[398963218,1766027452982,-150.0,0.00039415,7]
[398963219,1766027452993,-150.0,0.00039426,7]
[398963220,1766027453003,-150.0,0.00039426,7]
[398963221,1766027453015,-150.0,0.00039426,7]
[398963222,1766027453026,-150.0,0.00039426,7]
[398963223,1766027453037,-150.0,0.00039464,7]
[398963224,1766027453048,-150.0,0.00039468,7]
[398963225,1766027453058,-150.0,0.00039471,7]
[398963226,1766027453069,-150.0,0.00039476,7]
[398963227,1766027453080,-150.0,0.00039479,7]
[398963228,1766027453096,-150.0,0.00039481,7]
[398963229,1766027453109,-150.0,0.00039489,7]
[398963230,1766027453120,-13928.07,0.00039506,120]
[398963231,1766027453132,-150.0,0.00039522,7]
[398963232,1766027453143,-150.0,0.00039528,7]
[398963233,1766027453154,-150.0,0.00039535,7]
[398963234,1766027453166,-150.0,0.00039552,7]
[398963235,1766027453177,-150.0,0.0003956,7]
[398963236,1766027453188,-150.0,0.00039567,2]
[398963237,1766027453199,-150.0,0.00039575,7]
[398963238,1766027453210,-150.0,0.00039585,7]
[398963239,1766027453220,-150.0,0.0003959,7]
[398963240,1766027453231,-150.0,0.00039593,7]
[398963241,1766027453242,-171.04,0.000396,14]
[398963242,1766027453252,-2319.3,0.000396,14]
[398963243,1766027453263,-150.0,0.00039611,7]
[398963244,1766027453274,-150.0,0.00039615,7]
[398963245,1766027453285,-150.0,0.00039619,7]
[398963246,1766027453296,-150.0,0.00039628,7]
[398963247,1766027453307,-150.0,0.00039644,7]
[398963248,1766027453317,-150.0,0.00039645,7]
[398963249,1766027453328,-670.93,0.00039654,2]
[398963250,1766027453339,-150.0,0.00039657,7]
[398963251,1766027453349,-150.0,0.00039678,7]
[398963252,1766027453360,-150.0,0.00039682,7]
[398963253,1766027453371,-150.0,0.000397,7]
[398963254,1766027453381,-150.0,0.000397,7]
[398963255,1766027453391,-150.0,0.000397,7]
[398963256,1766027453402,-150.0,0.00039721,7]
[398963257,1766027453412,-150.0,0.00039727,7]
[398963258,1766027453423,-150.0,0.00039735,7]
[398963259,1766027453433,-150.0,0.00039742,7]
[398963260,1766027453443,-150.0,0.00039744,7]
[398963261,1766027453454,-150.0,0.00039754,7]
[398963262,1766027453464,-150.0,0.00039785,7]
[398963263,1766027453476,-150.0,0.00039788,7]
[398963264,1766027453486,-150.0,0.00039805,7]
[398963265,1766027453496,-150.0,0.00039809,7]
[398963266,1766027453507,-150.0,0.00039811,7]
[398963267,1766027453517,-152.05077909,0.00039813,8]
[398963268,1766027453527,-1664.84963513,0.00039813,2]
[398963269,1766027453538,-184.11121267,0.00039813,2]
[398963270,1766027453548,-150.0,0.00039814,7]
[398963271,1766027453559,-150.0,0.00039842,7]
[398963272,1766027453569,-150.0,0.00039849,7]
[398963273,1766027453580,-150.0,0.00039861,7]
[398963274,1766027453591,-150.0,0.00039864,7]
[398963275,1766027453601,-150.0,0.00039868,7]
[398963276,1766027453611,-150.0,0.00039876,7]
[398963277,1766027453621,-1096.5963496,0.0003989,2]
[398963278,1766027453631,-150.0,0.00039895,7]
[398963279,1766027453642,-150.0,0.00039895,7]
[398963280,1766027453652,-500.0,0.00039899,60]
[398963281,1766027453662,-500.0,0.00039899,60]
[398963282,1766027453672,-500.0,0.00039899,60]
[398963283,1766027453682,-489.99,0.00039899,60]
[398963284,1766027453693,-500.0,0.00039899,60]
[398963285,1766027453703,-500.0,0.00039899,60]
[398963286,1766027453714,-500.0,0.00039899,60]
[398963287,1766027453724,-158.17888471,0.00039899,60]
[398963288,1766027453734,-463.62,0.00039899,60]
[398963289,1766027453744,-526.53,0.00039899,60]
[398963290,1766027453754,-526.53,0.00039899,60]
[398963291,1766027453764,-526.53,0.00039899,60]
[398963292,1766027453774,-526.53,0.00039899,60]
[398963293,1766027453783,-526.53,0.00039899,60]
[398963294,1766027453793,-526.53,0.00039899,60]
[398963295,1766027453803,-526.53,0.00039899,60]
[398963296,1766027453813,-526.53,0.00039899,60]
[398963297,1766027453823,-500.0,0.00039899,60]
[398963298,1766027453833,-500.0,0.00039899,60]
[398963299,1766027453842,-500.0,0.00039899,60]
[398963300,1766027453851,-820744.69294564,0.000399,3]
[398963301,1766027455919,-429.15312647,0.000159,2]
[398963302,1766027455929,-338.72025966,0.00025736,2]
[398963303,1766027455946,-4512.11668388,0.00025736,2]
[398963321,1766028631949,-413.8620027,0.00015,2]
[398963323,1766028632007,-586.1379973,0.00015,2]
[398963324,1766028632017,-300.0,0.00015999,2]
[398963325,1766028632028,-1200.0,0.00015999,2]
[398963326,1766028632039,-1000.0,0.00016,2]
[398963327,1766028632049,-16252.89884794,0.00016,4]
[398963501,1766028637982,-483.05057557,0.00016,4]
[398963502,1766028638148,-4272.55112067,0.00016,4]
[398963503,1766028638204,-342.16705211,0.00016,4]
[398963708,1766028640208,-372.29681343,0.00016,4]
[398963710,1766028640219,-250.0,0.00016471,2]
[398963712,1766028640228,-66.49701509,0.000165,2]